{"text_format":"3","workbook":"xlsx","n_sheets":2,"sheets":["Budget","dropdown"],"not_rendered":{"images":2,"defined_names":3,"comments":1},"read":"whole","date_system":"1900"}

{"sheet":"Budget","index":0,"n_rows":73,"n_cols":8,"rows_kept":73,"merged":[[4,0,4,7],[5,0,5,7],[39,2,39,3],[49,0,50,0]]}
[]
[]
[]
[]
["Berechnung des \"zivilprozessualen Zwangsbedarfs\""]
["NAME"]
[]
["Einkommen",{"$nulls":3},"Mann","Frau",null,"Total"]
[]
["Nettoeinkommen inkl. Provisionen (Durchschnitt)",{"$nulls":6},{"$f":"MROUND(SUM(E10:F10),0.05)","v":0}]
["Kinderzulagen",{"$nulls":6},0]
["13. Monatslohn; Gratifikation; Bonus pro Jahr"]
["Mann"]
["Frau"]
["Anteil pro Monat (wird vom Programm berechnet)",{"$nulls":3},{"$f":"B13/12","v":0},{"$f":"B14/12","v":0},null,0]
["Alimente",{"$nulls":6},0]
["Andere Einnahmen",{"$nulls":6},0]
["abzüglich Unterstützungsbeiträge (v.a. Alimente)",{"$nulls":6},{"$f":"MROUND(SUM(E18:F18),0.05)","v":0}]
["zuzüglich Beiträge von Minderjährigen",{"$nulls":6},0]
[]
["Total Einkommen",{"$nulls":3},{"$f":"SUM(E10:E20)","v":0},{"$f":"SUM(F10:F20)","v":0},{"$f":"SUM(G10:G20)","v":0},{"$f":"SUM(H10:H20)","v":0}]
[]
["Einkommen in %",{"$nulls":3},{"$f":"E21/$H$21","v":{"$error":"#DIV/0!"}},{"$f":"F21/$H$21","v":{"$error":"#DIV/0!"}},null,{"$f":"H21/$H$21","v":{"$error":"#DIV/0!"}}]
[]
["Ausgaben",{"$nulls":3},"Mann ","Frau",null,"Total"]
[]
["Monatlicher Grundbetrag Erwachsene"]
["- Alleinstehend",{"$nulls":6},{"$f":"IF(C28>0,1200)+0","v":0}]
["- Alleinerziehend",{"$nulls":6},{"$f":"IF(C29>0,1350)+0","v":0}]
["- Ehepaar / eingetragene"]
["  Partnerschaft / Paar mit ",{"$nulls":3},"Zutreffendes"]
["  Kindern",{"$nulls":3},"ankreuzen",null,null,{"$f":"IF(C32>0,1700)+0","v":0}]
["- kinderlose, kostensenkende"]
["  Wohngemeinschaft i.d.R.",{"$nulls":6},{"$f":"IF(C34>0,850)+0","v":0}]
[]
["Unterhalt der Kinder"]
["- Anzahl Kinder bis 10 Jahre",{"$nulls":6},{"$f":"C37*400","v":0}]
["- Anzahl Kinder über 10 Jahre",{"$nulls":6},{"$f":"C38*600","v":0}]
[]
["Zuschlag \"Prozessarmut\"",null,{"v":0.3,"d":"30%"},{"$nulls":4},{"$f":"SUM(H28:H38)*C40","v":0}]
[]
["Mietzins",{"$nulls":6},{"$f":"MROUND(SUM(E42:F42),0.05)","v":0}]
["Heiz- und Nebenkosten",{"$nulls":6},0]
["Krankenkassenprämien",{"$nulls":6},0]
["Jahresfranchisen Krankenkasse",{"$nulls":6},{"$f":"MROUND(SUM(E45:F45),0.05)","v":0}]
["Gesundheitskosten",{"$nulls":6},{"$f":"MROUND(SUM(E46:F46),0.05)","v":0}]
["Sozialversicherungsbeiträge",{"$nulls":6},0]
["Beiträge an Berufsverbände",{"$nulls":6},0]
["Auswärtige Verpflegung",{"$nulls":6},0]
["Erhöhter Nahrungsbedarf bei \nSchwerarbeit, Schicht- und Nachtarbeit"]
[{"$nulls":7},0]
["Überdurchschnittlicher Kleiderverbrauch",{"$nulls":6},0]
["Fahrten zum Arbeitsplatz",{"$nulls":6},0]
["Motorfahrzeug",{"$nulls":6},0]
["Pauschale für Telekommunikation usw.",{"$nulls":6},0]
["Kinderbetreuung",{"$nulls":6},0]
["Schulung der Kinder",{"$nulls":6},0]
["Besuchsrecht von Kindern",{"$nulls":6},0]
["Steuern",{"$nulls":6},0]
[]
["Total Ausgaben",{"$nulls":6},{"$f":"SUM(H28:H59)","v":0}]
[]
["Zusammenzug",{"$nulls":3},"Mann","Frau"]
["Einkommen",{"$nulls":3},{"$f":"E21","v":0},{"$f":"F21","v":0}]
["Anteil am familiären Existenzminimum",{"$nulls":3},{"$f":"MROUND(($H$61*E23),0.05)","v":{"$error":"#DIV/0!"}},{"$f":"MROUND(($H$61*F23),0.05)","v":{"$error":"#DIV/0!"}}]
["Überschuss/Unterdeckung pro Monat",{"$nulls":3},{"$f":"E64-E65","v":{"$error":"#DIV/0!"}},{"$f":"F64-F65","v":{"$error":"#DIV/0!"}}]
[]
["Die Berechnung des zivilprozessualen Zwangsbedarfs ist Ermessenssache und wird von "]
["Kanton zu Kanton unterschiedlich gehandhabt."]
["Die vorliegende Tabelle ist bloss ein Hilfsmittel und ersetzt die sorgfältige Analyse der "]
["Lage nicht!"]
["Die unentgeltliche Rechtspflege wird nur gewährt, sofern das Begehren nicht "]
["aussichtslos erscheint."]

{"sheet":"dropdown","index":1,"n_rows":0,"n_cols":0,"rows_kept":0,"hidden":true}